[Event "*** Titled Tuesday Blitz"]
[Site "Chess.com"]
[Date "2018.12.04"]
[Round "1"]
[White "zeitnot2006"]
[Black "SanchezKelvin"]
[Result "1/2-1/2"]
[WhiteElo "2100"]
[BlackElo "2494"]
[TimeControl "180+2"]
[EndTime "13:10:07 PST"]
[Termination "Game drawn by repetition"]

1. d4 {[%clk 0:02:59]} 1... Nf6 {[%clk 0:02:59.2]} 2. c4 {[%clk 0:02:58.7]} 2...
g6 {[%clk 0:03:01.1]} 3. g3 {[%clk 0:03:00.1]} 3... Bg7 {[%clk 0:03:02.7]} 4.
Bg2 {[%clk 0:03:01.7]} 4... O-O {[%clk 0:03:03.6]} 5. Nc3 {[%clk 0:03:03.3]}
5... c5 {[%clk 0:03:04.4]} 6. d5 {[%clk 0:03:03.4]} 6... e6 {[%clk 0:03:04.5]}
7. Nf3 {[%clk 0:03:00.7]} 7... exd5 {[%clk 0:03:06.4]} 8. cxd5 {[%clk
0:03:01.4]} 8... d6 {[%clk 0:03:08.3]} 9. O-O {[%clk 0:03:02]} 9... Re8 {[%clk
0:03:08.7]} 10. h3 {[%clk 0:02:43.7]} 10... Na6 {[%clk 0:03:06.8]} 11. Nd2
{[%clk 0:02:30.5]} 11... Nc7 {[%clk 0:02:59.1]} 12. a4 {[%clk 0:02:31.5]} 12...
b6 {[%clk 0:02:50.9]} 13. Re1 {[%clk 0:02:20.5]} 13... a6 {[%clk 0:02:44.4]} 14.
Nc4 {[%clk 0:02:07.6]} 14... Rb8 {[%clk 0:02:33.9]} 15. Bf4 {[%clk 0:02:02.8]}
15... Bf8 {[%clk 0:02:33.1]} 16. e4 {[%clk 0:01:51.6]} 16... Nh5 {[%clk
0:02:26.8]} 17. Be3 {[%clk 0:01:40.3]} 17... Bd7 {[%clk 0:01:56.7]} 18. Qd2
{[%clk 0:01:03.7]} 18... b5 {[%clk 0:01:25.6]} 19. axb5 {[%clk 0:01:03.6]} 19...
axb5 {[%clk 0:01:24.7]} 20. Na5 {[%clk 0:00:58.4]} 20... b4 {[%clk 0:01:19.7]}
21. Ne2 {[%clk 0:00:39.2]} 21... Bb5 {[%clk 0:01:19.7]} 22. Kh2 {[%clk
0:00:25.8]} 22... Ra8 {[%clk 0:01:11.6]} 23. Nc6 {[%clk 0:00:14.7]} 23... Qd7
{[%clk 0:01:03.7]} 24. Na7 {[%clk 0:00:12.4]} 24... Nf6 {[%clk 0:00:49.7]} 25.
Nxb5 {[%clk 0:00:11.9]} 25... Nxb5 {[%clk 0:00:48.7]} 26. f3 {[%clk 0:00:11.9]}
26... Qb7 {[%clk 0:00:44.4]} 27. Nf4 {[%clk 0:00:10.1]} 27... Nd7 {[%clk
0:00:44.1]} 28. Nd3 {[%clk 0:00:10.2]} 28... Bg7 {[%clk 0:00:42.3]} 29. Qc2
{[%clk 0:00:09.2]} 29... Rxa1 {[%clk 0:00:41]} 30. Rxa1 {[%clk 0:00:09.4]} 30...
Rc8 {[%clk 0:00:41.3]} 31. Ra4 {[%clk 0:00:05.7]} 31... Nb6 {[%clk 0:00:32]} 32.
Ra5 {[%clk 0:00:06.9]} 32... Nc7 {[%clk 0:00:30.4]} 33. b3 {[%clk 0:00:07.8]}
33... Ra8 {[%clk 0:00:28.8]} 34. Qa2 {[%clk 0:00:08.4]} 34... Rxa5 {[%clk
0:00:29.2]} 35. Qxa5 {[%clk 0:00:09.6]} 35... Qa6 {[%clk 0:00:30.3]} 36. Qxa6
{[%clk 0:00:10.9]} 36... Nxa6 {[%clk 0:00:31.1]} 37. Bf1 {[%clk 0:00:10.6]}
37... Nd7 {[%clk 0:00:31.6]} 38. f4 {[%clk 0:00:06]} 38... Nc7 {[%clk
0:00:31.4]} 39. Nf2 {[%clk 0:00:05.2]} 39... Bc3 {[%clk 0:00:28.6]} 40. Nd1
{[%clk 0:00:05.4]} 40... Bg7 {[%clk 0:00:27.5]} 41. Bd3 {[%clk 0:00:06.5]} 41...
h5 {[%clk 0:00:24.5]} 42. Bd2 {[%clk 0:00:05.2]} 42... Nf6 {[%clk 0:00:24.9]}
43. Kg2 {[%clk 0:00:06]} 43... Bh6 {[%clk 0:00:22.8]} 44. Kf3 {[%clk 0:00:06.7]}
44... Bg7 {[%clk 0:00:22.4]} 45. Nf2 {[%clk 0:00:05.8]} 45... Nd7 {[%clk
0:00:20.2]} 46. Nd1 {[%clk 0:00:06.4]} 46... Nb6 {[%clk 0:00:21.3]} 47. Ne3
{[%clk 0:00:07]} 47... Ne8 {[%clk 0:00:20.7]} 48. Nc4 {[%clk 0:00:08.2]} 48...
Nxc4 {[%clk 0:00:20.8]} 49. Bxc4 {[%clk 0:00:10.1]} 49... Nc7 {[%clk 0:00:21.9]}
50. Bd3 {[%clk 0:00:09.8]} 50... Kf8 {[%clk 0:00:22.3]} 51. g4 {[%clk
0:00:10.7]} 51... hxg4+ {[%clk 0:00:22.1]} 52. hxg4 {[%clk 0:00:12.6]} 52... Ke7
{[%clk 0:00:22.9]} 53. Be1 {[%clk 0:00:13.5]} 53... Bf6 {[%clk 0:00:23.5]} 54.
Bd2 {[%clk 0:00:13.9]} 54... Bd4 {[%clk 0:00:23.6]} 55. Be1 {[%clk 0:00:13.9]}
55... Bf6 {[%clk 0:00:24.2]} 56. Bg3 {[%clk 0:00:14.7]} 56... Kd7 {[%clk
0:00:22.6]} 57. Bc4 {[%clk 0:00:14.1]} 57... Bd4 {[%clk 0:00:22.5]} 58. e5
{[%clk 0:00:08.9]} 58... Bc3 {[%clk 0:00:20]} 59. Ke4 {[%clk 0:00:08.6]} 59...
Ke7 {[%clk 0:00:18.4]} 60. Bh4+ {[%clk 0:00:08.8]} 60... Kd7 {[%clk 0:00:19.3]}
61. Bg3 {[%clk 0:00:09.8]} 61... Ke7 {[%clk 0:00:19.5]} 62. Bh4+ {[%clk
0:00:11]} 62... Kd7 {[%clk 0:00:20.7]} 63. Bg3 {[%clk 0:00:12.2]} 1/2-1/2

[Event "*** Titled Tuesday Blitz"]
[Site "Chess.com"]
[Date "2018.12.04"]
[Round "1"]
[White "ohusbands"]
[Black "Karina_Oparina"]
[Result "0-1"]
[WhiteElo "2492"]
[BlackElo "2136"]
[TimeControl "180+2"]
[EndTime "13:10:21 PST"]
[Termination "Karina_Oparina won by resignation"]

1. e4 {[%clk 0:03:01]} 1... c6 {[%clk 0:03:00.3]} 2. d4 {[%clk 0:03:01.3]} 2...
d5 {[%clk 0:03:00.7]} 3. e5 {[%clk 0:03:02.1]} 3... Bf5 {[%clk 0:03:01]} 4. Nc3
{[%clk 0:03:02.7]} 4... e6 {[%clk 0:03:01.8]} 5. g4 {[%clk 0:03:03]} 5... Bg6
{[%clk 0:03:01.5]} 6. Nge2 {[%clk 0:03:03.8]} 6... h6 {[%clk 0:02:49.9]} 7. Be3
{[%clk 0:03:00]} 7... Nd7 {[%clk 0:02:45.3]} 8. Nf4 {[%clk 0:03:01.2]} 8... Bh7
{[%clk 0:02:45.1]} 9. Bd3 {[%clk 0:03:02.8]} 9... Bxd3 {[%clk 0:02:43.2]} 10.
Qxd3 {[%clk 0:03:04.7]} 10... a6 {[%clk 0:02:43.7]} 11. O-O-O {[%clk 0:02:52.5]}
11... Ne7 {[%clk 0:02:43.2]} 12. h4 {[%clk 0:02:49.1]} 12... Qc7 {[%clk
0:02:41.7]} 13. g5 {[%clk 0:02:48.9]} 13... g6 {[%clk 0:02:30.1]} 14. gxh6
{[%clk 0:01:56.9]} 14... Bxh6 {[%clk 0:02:30.1]} 15. h5 {[%clk 0:01:56.3]} 15...
Bxf4 {[%clk 0:02:09.5]} 16. Bxf4 {[%clk 0:01:55.4]} 16... gxh5 {[%clk
0:02:07.7]} 17. Bg5 {[%clk 0:01:45.8]} 17... Ng6 {[%clk 0:02:06.9]} 18. f4
{[%clk 0:01:44.1]} 18... Ndf8 {[%clk 0:01:58.2]} 19. Bf6 {[%clk 0:01:41.2]}
19... Rh7 {[%clk 0:01:55.8]} 20. Ne2 {[%clk 0:01:39.9]} 20... c5 {[%clk
0:01:50.3]} 21. f5 {[%clk 0:01:39.3]} 21... c4 {[%clk 0:01:47.9]} 22. Qf3 {[%clk
0:01:32.7]} 22... exf5 {[%clk 0:01:43.4]} 23. Nc3 {[%clk 0:01:31.7]} 23... Qc6
{[%clk 0:01:37.4]} 24. Nxd5 {[%clk 0:01:19.3]} 24... Ne6 {[%clk 0:01:22.8]} 25.
Bh4 {[%clk 0:01:11.7]} 25... Rh8 {[%clk 0:01:13.3]} 26. Nf6+ {[%clk 0:01:12.6]}
26... Kf8 {[%clk 0:01:13]} 27. d5 {[%clk 0:01:13.5]} 27... Nxe5 {[%clk
0:01:03.5]} 28. Qa3+ {[%clk 0:01:12.5]} 28... Qc5 {[%clk 0:01:03]} 29. dxe6
{[%clk 0:01:08.4]} 29... Qxa3 {[%clk 0:01:03]} 30. bxa3 {[%clk 0:01:09.6]} 30...
fxe6 {[%clk 0:01:01.8]} 31. Rde1 {[%clk 0:01:04.5]} 31... Nf3 {[%clk 0:00:55]}
32. Rxe6 {[%clk 0:01:03.1]} 32... Nxh4 {[%clk 0:00:54]} 33. Rxh4 {[%clk
0:01:03.8]} 33... Kf7 {[%clk 0:00:54.8]} 34. Rb6 {[%clk 0:01:04.5]} 34... Rad8
{[%clk 0:00:48.6]} 35. Rxh5 {[%clk 0:01:03.1]} 35... Rxh5 {[%clk 0:00:48.4]} 36.
Nxh5 {[%clk 0:01:05]} 36... Rd7 {[%clk 0:00:45.5]} 37. Kb2 {[%clk 0:00:57.8]}
37... Ke7 {[%clk 0:00:40.9]} 38. Nf4 {[%clk 0:00:57.5]} 38... Kd8 {[%clk
0:00:36.8]} 39. Ne6+ {[%clk 0:00:54.3]} 39... Kc8 {[%clk 0:00:35.6]} 40. Kc3
{[%clk 0:00:53.5]} 40... Rd1 {[%clk 0:00:28.9]} 41. Kxc4 {[%clk 0:00:49.7]}
41... Ra1 {[%clk 0:00:28.9]} 42. Kb3 {[%clk 0:00:47.4]} 42... Rb1+ {[%clk
0:00:29.5]} 43. Kc4 {[%clk 0:00:44.7]} 43... Rxb6 {[%clk 0:00:29.9]} 44. Nd4
{[%clk 0:00:45.3]} 44... Rf6 {[%clk 0:00:27.6]} 45. Kd3 {[%clk 0:00:43.2]} 45...
f4 {[%clk 0:00:23]} 46. Ke4 {[%clk 0:00:44]} 46... Kd7 {[%clk 0:00:22.8]} 47.
Nf3 {[%clk 0:00:44.8]} 47... Kd6 {[%clk 0:00:18.3]} 48. c4 {[%clk 0:00:45.9]}
48... b6 {[%clk 0:00:16]} 49. Kd4 {[%clk 0:00:47]} 49... Rf8 {[%clk 0:00:13.8]}
50. a4 {[%clk 0:00:48.4]} 50... a5 {[%clk 0:00:14.3]} 51. a3 {[%clk 0:00:44.8]}
51... Rf7 {[%clk 0:00:12.2]} 52. Ke4 {[%clk 0:00:45.2]} 52... Rf6 {[%clk
0:00:12.3]} 53. Nd4 {[%clk 0:00:44.7]} 53... Kc5 {[%clk 0:00:11.6]} 54. Nf3
{[%clk 0:00:36.6]} 54... Kxc4 {[%clk 0:00:11.8]} 55. Ke5 {[%clk 0:00:38.5]}
55... Rf8 {[%clk 0:00:12]} 56. Kd6 {[%clk 0:00:38.2]} 56... Rf6+ {[%clk
0:00:11]} 57. Ke5 {[%clk 0:00:38.9]} 57... Rf8 {[%clk 0:00:10.7]} 58. Kd6 {[%clk
0:00:40.8]} 58... Kb3 {[%clk 0:00:11.6]} 59. Kc6 {[%clk 0:00:41.2]} 59... Rf6+
{[%clk 0:00:12.2]} 60. Kb5 {[%clk 0:00:42.3]} 60... Kxa3 {[%clk 0:00:12.9]} 61.
Ne5 {[%clk 0:00:33.2]} 61... Rf5 {[%clk 0:00:13.2]} 0-1

[Event "*** Titled Tuesday Blitz"]
[Site "Chess.com"]
[Date "2018.12.04"]
[Round "1"]
[White "ChainsOfFantasia"]
[Black "gmjlh"]
[Result "0-1"]
[WhiteElo "2355"]
[BlackElo "2676"]
[TimeControl "180+2"]
[EndTime "13:10:22 PST"]
[Termination "gmjlh won by resignation"]

1. d4 {[%clk 0:03:01.9]} 1... d5 {[%clk 0:03:00.1]} 2. Nf3 {[%clk 0:03:02.6]}
2... Nf6 {[%clk 0:03:01]} 3. c4 {[%clk 0:03:03.7]} 3... e6 {[%clk 0:03:02.1]} 4.
Nc3 {[%clk 0:03:04.5]} 4... c5 {[%clk 0:03:01.4]} 5. cxd5 {[%clk 0:03:04.9]}
5... Nxd5 {[%clk 0:03:03.3]} 6. e4 {[%clk 0:03:05.4]} 6... Nxc3 {[%clk
0:03:04.2]} 7. bxc3 {[%clk 0:03:07.3]} 7... cxd4 {[%clk 0:03:05.3]} 8. cxd4
{[%clk 0:03:09.2]} 8... Bb4+ {[%clk 0:03:06.4]} 9. Bd2 {[%clk 0:03:10.4]} 9...
Bxd2+ {[%clk 0:03:07.2]} 10. Qxd2 {[%clk 0:03:11.9]} 10... O-O {[%clk
0:03:07.7]} 11. Bb5 {[%clk 0:03:12.7]} 11... a6 {[%clk 0:03:07.8]} 12. Be2
{[%clk 0:03:13.3]} 12... b5 {[%clk 0:03:05.2]} 13. O-O {[%clk 0:03:13.8]} 13...
Bb7 {[%clk 0:03:05.8]} 14. Qe3 {[%clk 0:03:14.4]} 14... Nd7 {[%clk 0:03:06.4]}
15. Rfb1 {[%clk 0:03:12.9]} 15... Nf6 {[%clk 0:03:06.1]} 16. Bd3 {[%clk
0:03:10.6]} 16... Qe7 {[%clk 0:02:54.4]} 17. h3 {[%clk 0:02:55.1]} 17... Rfc8
{[%clk 0:02:48.5]} 18. Rb3 {[%clk 0:02:38.9]} 18... Bc6 {[%clk 0:02:28.8]} 19.
Ne5 {[%clk 0:02:32.5]} 19... Be8 {[%clk 0:02:29.3]} 20. Re1 {[%clk 0:02:05.9]}
20... Rc7 {[%clk 0:02:23.8]} 21. Qg3 {[%clk 0:02:04]} 21... Rac8 {[%clk
0:02:22.7]} 22. Re3 {[%clk 0:01:55.7]} 22... Qd6 {[%clk 0:01:54.5]} 23. Nf3
{[%clk 0:01:24.9]} 23... Qxg3 {[%clk 0:01:50.4]} 24. fxg3 {[%clk 0:01:26.8]}
24... Rc1+ {[%clk 0:01:43.7]} 25. Kf2 {[%clk 0:01:26.7]} 25... Ra1 {[%clk
0:01:15.1]} 26. Ra3 {[%clk 0:01:24.7]} 26... Rc6 {[%clk 0:00:30.6]} 27. Re1
{[%clk 0:01:11.1]} 27... Rxe1 {[%clk 0:00:28.3]} 28. Kxe1 {[%clk 0:01:12.3]}
28... Rb6 {[%clk 0:00:23.6]} 29. Kd2 {[%clk 0:01:10.9]} 29... Bc6 {[%clk
0:00:23.8]} 30. Ke3 {[%clk 0:01:09.1]} 30... Bb7 {[%clk 0:00:24.4]} 31. Rc3
{[%clk 0:01:07.5]} 31... Rc6 {[%clk 0:00:17.2]} 32. Rc5 {[%clk 0:00:57.6]} 32...
Nd7 {[%clk 0:00:11.5]} 33. Rxc6 {[%clk 0:00:50.7]} 33... Bxc6 {[%clk 0:00:13.4]}
34. Kd2 {[%clk 0:00:46.4]} 34... Kf8 {[%clk 0:00:13.3]} 35. Kc3 {[%clk
0:00:47.4]} 35... a5 {[%clk 0:00:14.1]} 36. a3 {[%clk 0:00:46.7]} 36... h6
{[%clk 0:00:15]} 37. Nd2 {[%clk 0:00:45.6]} 37... Nf6 {[%clk 0:00:13.1]} 38. g4
{[%clk 0:00:38.4]} 38... Ke7 {[%clk 0:00:13.6]} 39. g3 {[%clk 0:00:38.3]} 39...
Kd8 {[%clk 0:00:12.7]} 40. Bc2 {[%clk 0:00:36.5]} 40... Kc7 {[%clk 0:00:12.5]}
41. Kd3 {[%clk 0:00:37.8]} 41... Kb6 {[%clk 0:00:11.7]} 42. Bd1 {[%clk
0:00:38.6]} 42... Bb7 {[%clk 0:00:08.7]} 43. Bb3 {[%clk 0:00:36.9]} 43... Ba6
{[%clk 0:00:07.4]} 44. Kc3 {[%clk 0:00:35.7]} 44... Bb7 {[%clk 0:00:08.1]} 45.
Kd3 {[%clk 0:00:36.7]} 45... Bc6 {[%clk 0:00:09]} 46. Bc2 {[%clk 0:00:33]} 46...
g5 {[%clk 0:00:09.5]} 47. Bb3 {[%clk 0:00:33.2]} 47... h5 {[%clk 0:00:10.5]} 48.
gxh5 {[%clk 0:00:29.5]} 48... Nxh5 {[%clk 0:00:12.4]} 49. Nf1 {[%clk 0:00:30.4]}
49... a4 {[%clk 0:00:10.6]} 50. Bc2 {[%clk 0:00:30.6]} 50... b4 {[%clk
0:00:11.7]} 51. axb4 {[%clk 0:00:30]} 51... Bb5+ {[%clk 0:00:12.8]} 52. Kc3
{[%clk 0:00:29]} 52... Bxf1 {[%clk 0:00:14.7]} 53. h4 {[%clk 0:00:27.6]} 53...
Nxg3 {[%clk 0:00:13.4]} 54. hxg5 {[%clk 0:00:27.2]} 54... Ne2+ {[%clk
0:00:14.4]} 55. Kc4 {[%clk 0:00:22.5]} 55... a3 {[%clk 0:00:15.2]} 56. Bb3
{[%clk 0:00:17.9]} 56... Nc1+ {[%clk 0:00:14.7]} 57. Kc3 {[%clk 0:00:19]} 57...
Ne2+ {[%clk 0:00:11.7]} 58. Kc4 {[%clk 0:00:18.3]} 58... a2 {[%clk 0:00:11.1]}
59. Bxa2 {[%clk 0:00:18.6]} 59... Nc1+ {[%clk 0:00:12.1]} 60. Kc3 {[%clk
0:00:17.8]} 60... Nxa2+ {[%clk 0:00:13.2]} 61. Kd2 {[%clk 0:00:17.8]} 61... Nxb4
{[%clk 0:00:14.2]} 62. Ke3 {[%clk 0:00:16.9]} 62... Kc6 {[%clk 0:00:14.4]} 63.
Kf4 {[%clk 0:00:16.3]} 63... Kd6 {[%clk 0:00:15.4]} 64. Kg4 {[%clk 0:00:14.9]}
64... Bd3 {[%clk 0:00:15.9]} 65. Kf4 {[%clk 0:00:16]} 65... Nc6 {[%clk
0:00:16.2]} 66. d5 {[%clk 0:00:16.4]} 66... exd5 {[%clk 0:00:17.1]} 67. e5+
{[%clk 0:00:17.7]} 0-1

[Event "*** Titled Tuesday Blitz"]
[Site "Chess.com"]
[Date "2018.12.04"]
[Round "1"]
[White "WinnerOleg"]
[Black "1stSecond"]
[Result "1-0"]
[WhiteElo "2323"]
[BlackElo "2625"]
[TimeControl "180+2"]
[EndTime "13:10:28 PST"]
[Termination "WinnerOleg won by resignation"]

1. d4 {[%clk 0:03:00.9]} 1... Nf6 {[%clk 0:02:58.3]} 2. c4 {[%clk 0:03:01]} 2...
e6 {[%clk 0:02:59.2]} 3. Nc3 {[%clk 0:03:02.4]} 3... Bb4 {[%clk 0:03:00.4]} 4.
a3 {[%clk 0:03:03.9]} 4... Bxc3+ {[%clk 0:03:01.2]} 5. bxc3 {[%clk 0:03:05.8]}
5... c5 {[%clk 0:03:02.6]} 6. f3 {[%clk 0:03:04.5]} 6... Nc6 {[%clk 0:03:00.8]}
7. e4 {[%clk 0:03:02.5]} 7... e5 {[%clk 0:03:01.3]} 8. d5 {[%clk 0:03:01.7]}
8... Na5 {[%clk 0:03:02.3]} 9. Be3 {[%clk 0:02:57.8]} 9... b6 {[%clk 0:03:00.4]}
10. Bd3 {[%clk 0:02:56]} 10... Ba6 {[%clk 0:03:01.1]} 11. Qe2 {[%clk 0:02:55.4]}
11... O-O {[%clk 0:03:01.8]} 12. Nh3 {[%clk 0:02:54.4]} 12... Ne8 {[%clk
0:03:03.4]} 13. O-O {[%clk 0:02:54.6]} 13... Nd6 {[%clk 0:03:04.6]} 14. f4
{[%clk 0:02:46.7]} 14... f6 {[%clk 0:02:59.8]} 15. fxe5 {[%clk 0:02:43.8]} 15...
fxe5 {[%clk 0:03:01.7]} 16. Qh5 {[%clk 0:02:35.9]} 16... Rxf1+ {[%clk
0:02:53.2]} 17. Rxf1 {[%clk 0:02:34.7]} 17... Qe8 {[%clk 0:02:54.7]} 18. Qh4
{[%clk 0:02:30.7]} 18... Bxc4 {[%clk 0:02:50.5]} 19. Bxc4 {[%clk 0:02:26.2]}
19... Naxc4 {[%clk 0:02:51.9]} 20. Bc1 {[%clk 0:02:26]} 20... b5 {[%clk
0:02:21.6]} 21. Ng5 {[%clk 0:02:03]} 21... Qg6 {[%clk 0:02:21.8]} 22. Re1 {[%clk
0:01:57.3]} 22... Rf8 {[%clk 0:02:19.9]} 23. Qh3 {[%clk 0:01:49.4]} 23... Nb6
{[%clk 0:01:55.7]} 24. Nf3 {[%clk 0:01:37.5]} 24... Ndc4 {[%clk 0:01:48.8]} 25.
Nh4 {[%clk 0:01:19.8]} 25... Qf6 {[%clk 0:01:30.3]} 26. Nf5 {[%clk 0:01:20.2]}
26... Nd6 {[%clk 0:01:29.8]} 27. Rf1 {[%clk 0:01:05.7]} 27... Nxf5 {[%clk
0:01:28.4]} 28. Rxf5 {[%clk 0:01:06.5]} 28... Qe7 {[%clk 0:01:13.8]} 29. Bg5
{[%clk 0:01:02.1]} 29... Qe8 {[%clk 0:01:14.1]} 30. d6 {[%clk 0:00:53.7]} 30...
Rxf5 {[%clk 0:00:41.9]} 31. exf5 {[%clk 0:00:48.1]} 31... Qf7 {[%clk 0:00:30.5]}
32. Qf3 {[%clk 0:00:45.1]} 32... Qd5 {[%clk 0:00:30]} 33. Qh5 {[%clk 0:00:39.8]}
33... Qf7 {[%clk 0:00:23.9]} 34. Qf3 {[%clk 0:00:40.8]} 34... h6 {[%clk
0:00:23.2]} 35. Be7 {[%clk 0:00:40.5]} 35... Qd5 {[%clk 0:00:18.1]} 36. Qh5
{[%clk 0:00:41.1]} 36... Qf7 {[%clk 0:00:19.4]} 37. Qf3 {[%clk 0:00:42.4]} 37...
Kh7 {[%clk 0:00:20.5]} 38. f6 {[%clk 0:00:25.3]} 38... g6 {[%clk 0:00:20.5]} 39.
Qb7 {[%clk 0:00:25.4]} 39... h5 {[%clk 0:00:13.9]} 40. Qxa7 {[%clk 0:00:25]}
40... Nd5 {[%clk 0:00:07.9]} 41. Qxd7 {[%clk 0:00:25.6]} 41... Nxf6 {[%clk
0:00:09.5]} 42. Qxb5 {[%clk 0:00:25.9]} 42... Ne4 {[%clk 0:00:10.3]} 43. Qe2
{[%clk 0:00:24.9]} 43... Qd5 {[%clk 0:00:09.3]} 44. h3 {[%clk 0:00:21.1]} 44...
Nxd6 {[%clk 0:00:10]} 45. Qf2 {[%clk 0:00:20.3]} 45... Nf5 {[%clk 0:00:10]} 46.
Qxc5 {[%clk 0:00:20.7]} 46... Qd1+ {[%clk 0:00:09.8]} 47. Kh2 {[%clk 0:00:21.6]}
47... e4 {[%clk 0:00:09.6]} 48. Bg5 {[%clk 0:00:21.3]} 48... Qd7 {[%clk
0:00:10.2]} 49. Qf2 {[%clk 0:00:21.6]} 49... Qc7+ {[%clk 0:00:10.6]} 50. Qf4
{[%clk 0:00:22.1]} 50... Qxc3 {[%clk 0:00:08]} 51. h4 {[%clk 0:00:20]} 51... e3
{[%clk 0:00:08.7]} 52. Qe4 {[%clk 0:00:21]} 52... Qc7+ {[%clk 0:00:08.5]} 53.
Kg1 {[%clk 0:00:20.7]} 53... Qa7 {[%clk 0:00:09.6]} 54. Kf1 {[%clk 0:00:20.8]}
54... Qa6+ {[%clk 0:00:10.2]} 55. Kg1 {[%clk 0:00:21.9]} 55... Qxa3 {[%clk
0:00:11.3]} 56. Qb7+ {[%clk 0:00:22.1]} 56... Kg8 {[%clk 0:00:12]} 57. Qd5+
{[%clk 0:00:22.4]} 57... Kg7 {[%clk 0:00:11.1]} 58. Qe5+ {[%clk 0:00:23.2]}
58... Kh7 {[%clk 0:00:12]} 59. Qc7+ {[%clk 0:00:23.9]} 59... Kg8 {[%clk
0:00:13.6]} 60. Qc4+ {[%clk 0:00:24.7]} 60... Kf8 {[%clk 0:00:12.7]} 61. Qc8+
{[%clk 0:00:24.5]} 61... Kf7 {[%clk 0:00:14.1]} 62. Qd7+ {[%clk 0:00:25.7]}
62... Kg8 {[%clk 0:00:13.3]} 63. Qe8+ {[%clk 0:00:25.3]} 63... Kh7 {[%clk
0:00:12.7]} 64. Qf7+ {[%clk 0:00:24.4]} 64... Ng7 {[%clk 0:00:09.7]} 65. Bf6
{[%clk 0:00:23.9]} 65... Qc1+ {[%clk 0:00:04]} 66. Kh2 {[%clk 0:00:24.4]} 66...
Qc7+ {[%clk 0:00:03.9]} 67. Qxc7 {[%clk 0:00:24.6]} 1-0